bitfinex/quotes_ETHUSD_20251118
["timestamp","ask_amount","ask_price","bid_price","bid_amount"]
[1763433297265,4.77449664,3045.4,3044.7,0.15712884]
[1763433297474,4.77449664,3045.4,3044.3,0.87200101]
[1763433297965,1.31249664,3045.4,3044.3,0.87200101]
[1763433298164,0.90699264,3045.3,3044.3,0.87200101]
[1763433298764,0.405504,3045.4,3044.3,0.87200101]
[1763433299066,0.90699264,3045.3,3044.4,0.87200101]
[1763433299265,0.405504,3045.4,3044.4,0.87200101]
[1763433299467,0.405504,3045.4,3045.3,0.1977]
[1763433299694,0.51667116,3045.5,3045.3,0.6924]
[1763433300098,0.51667116,3045.5,3045.3,0.1977]
[1763433300301,0.92964951,3045.4,3044.4,1.35006103]
[1763433300502,0.888604,3045.4,3044.7,0.1977]
[1763433300675,0.405504,3045.4,3044.7,0.1977]
[1763433300876,0.51667116,3045.5,3045.3,0.4947]
[1763433301105,0.51667116,3045.5,3045.4,0.4947]
[1763433301308,0.002,3046.9,3045.3,1.16266801]
[1763433301470,0.002,3046.9,3045.7,0.87641037]
[1763433301809,1.54689264,3046.9,3045.8,0.87641037]
[1763433301968,1.54689264,3046.9,3045.2,0.87641037]
[1763433302169,0.002,3046.9,3045.5,0.3051]
[1763433302369,0.002,3046.9,3046.0,0.87641037]
[1763433302577,0.002,3046.9,3046.5,0.87641037]
[1763433302808,0.002,3046.9,3046.3,1.16266801]
[1763433302809,0.002,3046.9,3046.6,0.87641037]
[1763433302981,0.002,3046.9,3046.7,1.18151037]
[1763433303180,0.002,3046.9,3046.7,0.3051]
[1763433303380,0.002,3046.9,3046.2,0.87641037]
[1763433303593,0.002,3046.9,3046.3,0.87641037]
[1763433303803,0.002,3046.9,3046.4,0.87641037]
[1763433304220,0.002,3046.9,3045.5,2.32857355]
[1763433304221,0.855904,3046.8,3045.8,0.87641037]
[1763433304375,0.405504,3046.7,3045.7,0.87641037]
[1763433304704,0.405504,3046.7,3045.6,0.35992242]
[1763433304917,0.405504,3046.7,3045.3,1.16266801]
[1763433305086,0.405504,3046.7,3045.6,0.3051]
[1763433307088,0.405504,3046.7,3045.0,1.16266801]
[1763433307089,10.20858999,3046.5,3045.0,1.16266801]
[1763433307312,1.38979264,3046.7,3044.7,0.1977]
[1763433307313,1.31249664,3045.9,3044.7,0.1977]
[1763433307634,0.405504,3045.8,3044.4,1.14882674]
[1763433308129,0.405504,3045.6,3044.0,1.74400202]
[1763433308305,0.405504,3045.6,3043.8,0.1926]
[1763433308306,4.77449664,3045.4,3043.8,1.93660202]
[1763433308512,4.77449664,3045.4,3043.8,0.1926]
[1763433308710,0.4828,3045.3,3043.8,0.1926]
[1763433308904,0.405504,3045.1,3043.8,0.1926]
[1763433309246,0.405504,3044.9,3043.2,1.74400202]
[1763433309398,7.73087863,3045.0,3042.9,1.74400202]
[1763433309596,0.405504,3044.7,3043.0,1.74400202]
[1763433309928,0.92234385,3044.3,3042.8,0.001]
[1763433310094,1.31249664,3043.9,3042.8,0.001]
[1763433310296,0.189,3042.9,3042.8,0.001]
[1763433312033,0.189,3042.9,3042.8,0.001]
[1763433312329,0.405504,3043.5,3042.8,0.001]
[1763433312530,0.189,3042.9,3042.8,0.001]
[1763433313030,0.594504,3042.9,3042.8,0.001]
[1763433313232,0.189,3042.9,3042.8,0.001]
[1763433313396,6.28194551,3043.5,3042.8,0.001]
[1763433313397,0.405504,3043.6,3042.8,0.001]
[1763433313836,0.405504,3043.5,3042.8,0.001]
[1763433314248,0.405504,3043.8,3042.8,0.001]
[1763433314418,0.405504,3043.3,3042.8,0.001]
[1763433314622,0.4828,3043.8,3042.8,0.001]
[1763433314859,0.4828,3044.7,3042.8,0.001]
[1763433315353,1.38979264,3044.7,3042.8,0.001]
[1763433315653,0.405504,3044.6,3042.8,0.001]
[1763433315853,0.888304,3044.6,3042.8,0.001]
[1763433316216,0.405504,3044.4,3042.8,0.001]
[1763433316953,0.4828,3044.4,3042.8,0.001]
[1763433317163,0.405504,3044.2,3042.8,0.001]
[1763433317516,0.405504,3044.0,3042.8,0.001]
[1763433317962,0.4828,3044.1,3042.8,0.001]
[1763433318723,1.40169264,3044.7,3042.8,0.001]
[1763433319025,0.4947,3044.7,3042.8,0.001]
[1763433319260,0.53575629,3044.6,3042.9,0.1745002]
[1763433319435,0.53575629,3044.6,3042.8,0.001]
[1763433319436,1.31249664,3044.2,3042.8,0.001]
[1763433319638,0.405504,3044.1,3042.8,0.001]
[1763433319954,0.90699264,3044.2,3042.8,0.001]
[1763433320128,0.405504,3044.7,3042.8,0.001]
[1763433320334,0.900204,3044.7,3042.8,0.001]
[1763433320541,0.4947,3044.7,3042.8,0.001]
[1763433320745,0.189,3044.8,3042.8,0.001]
[1763433320954,0.189,3044.8,3042.9,2.14950602]
[1763433321123,0.189,3044.8,3043.1,0.405504]
[1763433321323,0.04105494,3044.7,3043.0,1.74400202]
[1763433321546,0.405504,3044.6,3043.1,0.1744002]
[1763433321759,0.405504,3044.6,3042.8,1.74500202]
[1763433321760,0.405504,3044.4,3042.8,0.001]
[1763433322146,0.189,3044.8,3042.8,0.001]
[1763433322458,1.31249664,3044.6,3042.8,0.001]
[1763433322644,0.405504,3044.6,3042.8,0.001]
[1763433322845,0.405504,3044.5,3042.8,0.001]
[1763433323058,0.51683581,3044.2,3042.8,0.1755002]
[1763433323361,0.405504,3044.1,3042.8,0.1755002]
[1763433323550,0.405504,3044.1,3042.8,0.001]
[1763433323551,0.44656703,3044.1,3042.8,0.001]
[1763433323751,0.900204,3044.1,3042.8,0.001]
[1763433323968,0.405504,3043.9,3042.8,0.001]
[1763433324128,0.90699264,3044.0,3042.8,0.001]
[1763433324129,0.405504,3043.7,3042.8,0.001]
[1763433324671,0.405504,3043.5,3042.8,0.001]
[1763433325027,0.1867,3043.8,3042.8,0.001]
[1763433325230,0.405504,3043.7,3042.8,0.001]
[1763433325730,0.405504,3043.9,3042.8,0.001]
[1763433326364,0.405504,3043.8,3042.8,0.001]
[1763433326740,0.4947,3043.7,3042.8,0.001]
[1763433327064,0.405504,3043.8,3042.8,0.001]
[1763433327472,3.867504,3043.6,3042.8,0.001]
[1763433327676,0.405504,3043.4,3042.8,0.001]
[1763433327842,0.592204,3042.9,3042.8,0.001]
[1763433328231,1.086904,3042.9,3042.8,0.001]
[1763433328433,0.405504,3042.8,3042.4,0.001]
[1763433328637,0.04108193,3042.7,3040.7,1.22885417]
[1763433328841,0.900204,3042.8,3040.7,1.22885417]
[1763433329168,0.405504,3042.6,3040.7,1.22885417]
[1763433329367,0.405504,3042.6,3040.4,6.28194551]
[1763433329584,0.405504,3042.4,3040.2,2.32857355]
[1763433329735,0.53578733,3042.3,3040.0,2.32857355]
[1763433330082,0.53578733,3042.3,3039.9,8.61051906]
[1763433330370,0.53578733,3042.3,3040.0,1.76804455]
[1763433330371,0.405504,3042.1,3040.0,1.76804455]
[1763433330590,0.90699264,3042.7,3040.5,1.31249664]
[1763433330591,0.405504,3042.6,3040.5,1.31249664]
[1763433330730,0.405504,3042.4,3040.5,0.90699264]
[1763433330935,0.405504,3042.5,3040.5,0.90699264]
[1763433331173,0.4947,3042.4,3040.6,0.71989382]
[1763433331329,0.405504,3042.3,3040.6,0.001]
[1763433331682,0.405504,3042.8,3040.6,0.001]
[1763433331872,0.900204,3042.8,3040.6,0.001]
[1763433332034,0.405504,3042.7,3040.6,0.001]
[1763433332380,0.04108328,3042.6,3040.6,0.001]
[1763433332565,0.900204,3042.7,3040.6,0.001]
[1763433332739,1.31249664,3042.5,3040.6,0.001]
[1763433333256,0.405504,3042.3,3040.6,0.001]
[1763433333630,0.405504,3042.8,3040.6,0.001]
[1763433333965,0.405504,3042.6,3040.6,0.001]
[1763433334167,0.405504,3042.4,3040.6,0.001]
[1763433334375,0.405504,3042.2,3040.6,0.001]
[1763433334536,0.405504,3042.3,3040.6,0.001]
[1763433334968,0.405504,3042.1,3040.6,0.001]
[1763433335469,0.405504,3041.9,3040.6,0.001]
[1763433335861,0.1921,3041.8,3040.6,0.001]
[1763433336058,0.405504,3041.7,3040.6,0.001]
[1763433336893,0.405504,3041.5,3040.6,0.001]
[1763433337197,0.1921,3041.8,3040.6,0.001]
[1763433337896,0.1921,3041.8,3040.8,1.1693432]
[1763433338095,0.405504,3042.0,3040.8,1.1693432]
[1763433339362,0.405504,3041.8,3040.8,1.1693432]
[1763433339558,0.405504,3041.8,3040.7,1.1693432]
[1763433339783,0.405504,3041.8,3040.6,0.001]
[1763433339784,0.405504,3041.6,3040.6,1.1703432]
[1763433339974,0.04109544,3041.7,3040.6,0.001]
[1763433339975,1.31249664,3041.7,3040.6,0.001]
[1763433340187,0.405504,3041.5,3040.6,0.001]
[1763433340803,0.405504,3041.6,3040.6,0.001]
[1763433340986,0.405504,3041.3,3040.6,0.001]
[1763433341186,0.1921,3040.7,3040.6,0.001]
[1763433341364,1.058504,3040.7,3040.6,0.001]
[1763433342600,1.57589337,3040.7,3040.6,0.001]
[1763433342894,1.058504,3040.7,3040.6,0.001]
[1763433343368,0.653,3040.7,3040.6,0.001]
[1763433343567,0.405504,3041.0,3040.6,0.001]
[1763433343984,0.866404,3041.0,3040.6,0.001]
[1763433344189,0.1921,3041.4,3040.6,0.001]
[1763433344598,0.4609,3041.3,3040.6,0.001]
[1763433345123,0.405504,3041.3,3040.6,0.001]
[1763433345285,6.28194551,3041.8,3040.6,0.001]
[1763433345486,0.1921,3041.9,3040.6,0.001]
[1763433345793,0.90699264,3041.7,3040.6,0.001]
[1763433346330,0.405504,3041.6,3040.6,0.001]
[1763433346631,6.68744951,3040.7,3040.6,0.001]
[1763433346930,1.31249664,3040.7,3040.6,0.001]
[1763433347108,1.77339664,3040.7,3040.6,0.001]
[1763433347321,8.05534215,3040.7,3040.6,0.001]
[1763433347884,8.05534215,3040.7,3040.0,0.001]
[1763433347885,3.462,3040.5,3040.0,0.001]
[1763433348113,1.77339664,3040.6,3040.0,0.001]
[1763433348114,7.59444215,3040.1,3040.0,0.001]
[1763433348342,8.05534215,3040.1,3040.0,0.001]
[1763433348836,1.31249664,3040.1,3040.0,0.001]
[1763433349420,8.05534215,3040.1,3040.0,0.001]
[1763433349627,7.59444215,3040.1,3040.0,0.001]
[1763433349827,0.405504,3040.0,3039.3,0.001]
[1763433350332,0.405504,3039.8,3039.3,0.001]
[1763433350485,0.405504,3039.6,3039.3,0.001]
[1763433351215,0.405504,3039.4,3039.3,0.001]
[1763433351457,0.405504,3039.6,3039.3,0.001]
[1763433351724,0.405504,3039.4,3039.3,0.001]
[1763433352291,0.405504,3039.5,3039.3,0.001]
[1763433352491,0.04112653,3039.4,3039.3,0.001]
[1763433352731,0.866404,3039.4,3039.3,0.001]
[1763433353135,1.38415941,3039.4,3039.3,0.001]
[1763433353436,1.31249664,3038.8,3038.0,0.001]
[1763433353740,0.51775541,3039.4,3038.0,0.001]
[1763433354200,0.405504,3039.1,3038.0,0.001]
[1763433355136,1.31249664,3038.7,3038.0,0.001]
[1763433355343,0.405504,3038.6,3038.0,0.001]
[1763433355545,1.31249664,3038.2,3038.0,0.001]
[1763433355745,0.405504,3038.1,3038.0,0.001]
[1763433356834,0.1921,3038.6,3038.0,0.001]
[1763433357142,0.597604,3038.6,3038.0,0.001]
[1763433357333,0.405504,3038.4,3038.0,0.001]
[1763433358045,0.1921,3038.6,3038.0,0.001]
[1763433358208,0.405504,3038.5,3038.0,0.001]
[1763433359216,6.28194551,3038.8,3038.0,0.001]
[1763433359615,0.1921,3039.2,3038.0,0.001]
[1763433359926,0.90699264,3039.0,3038.0,0.001]
[1763433360251,0.405504,3038.9,3038.0,0.001]
[1763433360655,0.4609,3039.3,3038.0,0.001]
[1763433360656,0.1921,3039.4,3038.0,0.001]
[1763433360977,6.28194551,3039.6,3038.0,0.001]
[1763433361874,0.4609,3040.4,3038.1,1.1693432]
[1763433362077,0.1921,3042.3,3040.0,6.28194551]
[1763433362234,0.1921,3042.3,3039.8,0.45744607]
[1763433362439,6.28194551,3041.4,3039.7,1.1693432]
[1763433362733,0.94809348,3041.3,3039.4,1.1693432]
[1763433362935,0.04110084,3041.3,3039.5,0.20763358]
[1763433363170,0.4609,3041.9,3039.6,0.405504]
[1763433363337,0.51736759,3040.9,3039.8,1.1693432]
[1763433363538,0.90699264,3041.8,3039.7,1.1693432]
[1763433363734,0.51732353,3040.7,3040.0,1.1693432]
[1763433363948,0.51732353,3040.7,3040.4,1.1693432]
[1763433364173,0.002,3042.1,3040.7,0.405504]
[1763433364474,6.28194551,3042.0,3040.7,0.24818398]
[1763433364680,0.90699264,3041.9,3040.2,1.78114844]
[1763433364851,0.90699264,3041.9,3040.3,0.8741558]
[1763433365278,6.28194551,3041.4,3040.4,0.8741558]
[1763433365449,6.28194551,3041.4,3039.5,1.08178938]
[1763433365450,0.405504,3041.2,3039.5,1.08178938]
[1763433365654,0.405504,3041.7,3039.6,0.8741558]
[1763433365854,0.405504,3041.4,3039.6,0.8741558]
[1763433366050,0.405504,3041.4,3039.7,0.8741558]
[1763433366252,0.4518,3041.4,3039.8,0.8741558]
[1763433366442,1.31249664,3041.3,3039.8,0.8741558]
[1763433367070,1.76429664,3041.3,3039.8,0.8741558]
[1763433367671,0.90699264,3041.3,3039.8,0.8741558]
[1763433368339,0.44660619,3041.2,3039.8,0.8741558]
[1763433368538,0.89840619,3041.2,3039.8,0.8741558]
[1763433368755,0.89840619,3041.2,3039.7,0.8741558]
[1763433368937,0.405504,3040.8,3039.7,0.8741558]
[1763433369145,0.405504,3040.3,3039.3,0.001]
[1763433369444,0.04110895,3040.7,3039.3,0.001]
[1763433369445,0.1872,3040.7,3039.3,0.001]
[1763433369960,0.90699264,3040.9,3039.4,0.8741558]
[1763433370789,0.405504,3040.9,3039.5,0.8741558]
[1763433370947,0.405504,3040.9,3039.6,0.8741558]
[1763433371147,0.405504,3041.0,3039.5,0.8741558]
[1763433371451,0.1872,3041.1,3039.7,0.8741558]
[1763433371969,0.44660889,3041.0,3039.7,0.8741558]
[1763433372170,0.44660889,3041.0,3039.4,0.90699264]
[1763433372171,0.44660889,3041.0,3039.6,0.8741558]
[1763433372378,0.405504,3040.8,3039.4,0.8741558]
[1763433372542,0.405504,3040.8,3039.3,0.001]
[1763433372739,0.405504,3040.6,3039.3,0.001]
[1763433373188,0.405504,3040.5,3039.3,0.001]
[1763433373354,0.405504,3040.9,3039.3,0.8751558]
[1763433373751,0.405504,3040.7,3039.3,0.001]
[1763433374085,0.405504,3040.5,3039.3,0.001]
[1763433374286,0.04111301,3040.4,3039.3,0.001]
[1763433374462,0.4518,3040.5,3039.3,0.001]
[1763433375394,1.31249664,3040.4,3039.3,0.001]
[1763433375548,0.1872,3041.1,3039.3,0.001]
[1763433375749,0.405504,3040.9,3039.3,0.8751558]
[1763433376178,0.405504,3040.7,3039.3,0.8751558]
[1763433376383,0.405504,3040.5,3039.3,0.8751558]
[1763433378102,0.4518,3041.2,3039.3,0.8751558]
[1763433378269,0.4518,3041.5,3039.7,0.8741558]
[1763433378598,0.1956,3041.4,3039.9,0.8741558]
[1763433379473,0.4868,3041.2,3039.8,0.8741558]
[1763433379901,0.44660754,3041.1,3039.6,0.8741558]
[1763433380057,0.405504,3041.1,3039.7,0.8741558]
[1763433380398,0.405504,3041.0,3039.7,0.8741558]
[1763433380566,0.405504,3041.0,3039.5,0.8741558]
[1763433380765,0.405504,3040.8,3039.5,0.8741558]
[1763433381095,0.405504,3040.8,3039.4,0.8741558]
[1763433381412,0.1956,3039.4,3039.3,0.001]
[1763433381696,0.601104,3039.4,3039.3,0.001]
[1763433381904,0.405504,3039.3,3038.9,0.001]
[1763433382054,0.405504,3039.1,3038.9,0.001]
[1763433382257,0.52792924,3039.2,3038.9,0.001]
[1763433382258,0.44663595,3039.0,3038.9,0.001]
[1763433382753,0.892304,3039.0,3038.9,0.001]
[1763433383456,0.405504,3039.0,3038.9,0.001]
[1763433383664,0.1956,3039.4,3038.9,0.001]
[1763433383858,0.405504,3039.3,3038.9,0.001]
[1763433384062,0.44663189,3039.3,3038.9,0.001]
[1763433384283,0.405504,3039.0,3038.9,0.001]
[1763433384801,0.93343595,3039.0,3038.9,0.001]
[1763433384972,0.892304,3039.0,3038.9,0.001]
[1763433385618,0.93343595,3039.0,3038.9,0.001]
[1763433385925,0.892304,3039.0,3038.9,0.001]
[1763433386744,0.892304,3039.0,3038.0,0.001]
[1763433386745,0.405504,3038.9,3038.0,0.001]
[1763433386910,0.601104,3038.1,3038.0,0.001]
[1763433387116,0.6824,3038.8,3038.0,0.001]
[1763433387494,0.405504,3038.6,3038.0,0.001]
[1763433387701,0.4868,3039.3,3038.0,0.001]
[1763433388528,0.04112924,3039.2,3038.0,0.001]
[1763433388729,0.405504,3039.1,3038.0,0.001]
[1763433388900,0.4868,3039.2,3038.0,0.001]
[1763433389100,0.405504,3039.1,3038.0,0.001]
[1763433389332,0.405504,3039.1,3038.9,0.001]
[1763433389538,0.4868,3039.2,3038.9,0.001]
[1763433389710,0.1976,3039.4,3038.9,0.001]
[1763433390044,0.4868,3039.3,3038.9,0.001]
[1763433391202,0.405504,3039.2,3038.9,0.001]
[1763433391706,0.405504,3039.0,3038.9,0.001]
[1763433392040,0.4868,3039.3,3038.9,0.001]
[1763433392865,0.002,3039.4,3038.9,0.001]
[1763433393963,0.4888,3039.4,3038.9,0.001]
[1763433394255,0.002,3039.4,3038.9,0.001]
[1763433395422,0.002,3039.4,3039.0,0.87738788]
[1763433395628,0.002,3039.4,3038.9,0.87838788]
[1763433396025,0.002,3039.4,3039.0,0.87738788]
[1763433396561,0.002,3039.4,3039.1,0.87738788]
[1763433396910,0.002,3039.4,3039.3,1.1698505]
[1763433397114,0.002,3039.4,3039.3,0.38316189]
[1763433398364,0.002,3039.4,3039.2,1.75477576]
[1763433398857,0.002,3039.4,3039.3,1.75477576]
[1763433399011,0.002,3039.4,3039.3,2.33970101]
[1763433399215,0.002,3039.8,3039.3,2.33970101]
[1763433399415,0.002,3039.8,3039.7,1.75402253]
[1763433399615,0.002,3039.8,3039.7,1.34495242]
[1763433399851,0.002,3039.8,3039.7,0.17540225]
[1763433402217,0.002,3039.8,3039.7,1.34505304]
[1763433402660,0.002,3039.8,3039.7,0.17540225]
[1763433404266,0.002,3039.8,3039.7,1.92942478]
[1763433404773,0.002,3039.8,3039.5,0.87795816]
[1763433404930,0.4635,3039.8,3039.4,0.87795816]
[1763433405128,0.002,3039.8,3039.5,0.87795816]
[1763433405360,0.002,3039.8,3039.4,0.87795816]
[1763433405361,0.4635,3039.8,3039.4,0.87795816]
[1763433405681,0.4635,3039.8,3039.2,0.87795816]
[1763433407823,0.002,3039.8,3039.2,0.87795816]
[1763433408048,0.002,3039.8,3039.3,0.87795816]
[1763433408535,0.4615,3039.7,3039.3,0.87795816]
[1763433408738,0.002,3039.8,3039.3,0.87795816]
[1763433408927,0.4615,3039.7,3039.3,0.87795816]
[1763433409122,0.002,3039.8,3039.3,0.87795816]
[1763433409625,0.4635,3039.8,3039.3,0.87795816]
[1763433410221,0.4635,3039.8,3039.4,0.87795816]
[1763433410444,0.002,3039.8,3039.4,0.87795816]
[1763433411083,0.002,3039.8,3039.4,1.0827801]
[1763433411608,0.002,3039.8,3039.5,0.87795816]
[1763433412169,0.002,3039.8,3039.4,0.87795816]
[1763433412482,0.002,3039.8,3039.6,1.17026127]
[1763433414351,0.002,3039.8,3039.4,1.75402253]
[1763433414352,0.002,3039.8,3039.7,1.17026127]
[1763433414661,0.002,3039.8,3039.6,1.17026127]
[1763433414862,0.002,3039.8,3039.7,1.17026127]
[1763433415161,0.002,3039.8,3039.6,1.17026127]
[1763433415385,0.002,3039.8,3039.7,1.17026127]
[1763433415592,0.002,3039.8,3039.6,1.17026127]
[1763433415791,0.50462112,3039.8,3039.4,0.87959978]
[1763433415966,0.405504,3039.7,3039.1,0.87959978]
[1763433416162,0.04112383,3039.6,3039.0,0.87959978]
[1763433416398,0.04112383,3039.6,3038.9,0.001]
[1763433416399,0.405504,3039.5,3039.1,0.87959978]
[1763433416767,0.4973,3039.2,3038.9,0.88059978]
[1763433416979,0.405504,3039.0,3038.9,0.001]
[1763433417181,0.90699264,3039.6,3038.6,0.87959978]
[1763433417182,0.405504,3039.2,3038.6,0.87959978]
[1763433417384,0.1977,3038.8,3038.6,0.87959978]
[1763433417912,0.1977,3038.8,3038.5,0.001]
[1763433417913,0.867004,3038.7,3038.5,0.001]
[1763433418088,0.405504,3038.6,3038.5,0.001]
[1763433418267,0.867004,3038.6,3038.5,0.001]
[1763433418463,0.867004,3038.6,3038.2,0.001]
[1763433418694,0.405504,3038.4,3038.2,0.001]
[1763433418891,0.405504,3038.3,3038.2,0.001]
[1763433419408,0.867004,3038.3,3038.2,0.001]
[1763433420182,0.405504,3038.2,3037.9,0.001]
[1763433420401,0.867004,3038.2,3037.9,0.001]
[1763433420605,0.1977,3037.7,3037.2,0.67026127]
[1763433420774,0.405504,3037.3,3036.2,1.75402253]
[1763433421111,0.405504,3037.1,3035.8,1.75402253]
[1763433421298,0.1092,3035.9,3035.5,1.75402253]
[1763433421502,0.1092,3036.2,3035.6,1.75402253]
[1763433421699,0.1092,3036.2,3035.5,1.75402253]
[1763433421870,0.1092,3036.2,3035.5,1.92942478]
[1763433422211,0.50267123,3036.1,3034.7,1.75402253]
[1763433422408,0.405504,3036.0,3034.7,1.75402253]
[1763433422612,0.44667659,3036.0,3034.6,1.75402253]
[1763433422816,0.44667659,3036.0,3034.3,1.75402253]
[1763433422817,0.405504,3035.8,3034.3,1.75402253]
[1763433423034,0.405504,3035.8,3034.4,0.17540225]
[1763433423234,1.36849264,3035.9,3033.7,1.75402253]
[1763433423235,6.35963583,3035.5,3033.7,1.75402253]
[1763433423444,6.35963583,3035.5,3033.3,1.75402253]
[1763433423445,0.1977,3033.8,3033.3,1.75402253]
[1763433423608,0.1977,3033.8,3032.7,0.4829]
[1763433423811,0.4615,3033.7,3032.5,1.94792253]
[1763433424134,0.355504,3033.5,3032.3,0.4829]
[1763433424336,0.1977,3033.8,3032.4,0.4829]
[1763433424649,0.6592,3033.8,3031.9,2.43082253]
[1763433424941,0.6592,3033.8,3032.0,1.63297489]
[1763433425244,0.4615,3033.7,3032.0,0.72598225]
[1763433425450,0.4615,3033.7,3032.0,0.4829]
[1763433425661,0.4615,3033.7,3031.9,0.1939]
[1763433425941,0.1977,3033.8,3032.1,0.4891]
[1763433426252,0.1977,3033.8,3032.2,0.405504]
[1763433426426,0.51670381,3033.7,3032.3,0.4891]
[1763433426630,0.4755,3033.7,3032.3,0.4891]
[1763433426818,0.405504,3033.6,3032.3,0.4391]
[1763433427142,0.05,3032.4,3030.8,0.1939]
[1763433427503,0.51672283,3032.3,3030.1,0.36777941]
[1763433427707,0.51672283,3032.3,3029.8,0.1939]
[1763433427708,0.90699264,3031.4,3029.8,0.1939]
[1763433428004,0.405504,3031.2,3029.4,0.1912]
[1763433428206,0.62593643,3031.3,3028.7,0.1912]
[1763433428207,0.405504,3030.8,3028.7,0.1912]
[1763433428553,0.90699264,3030.9,3028.4,0.1912]
[1763433428554,0.4755,3030.7,3028.4,0.1912]
[1763433428703,0.405504,3030.6,3028.4,0.1912]
[1763433428903,0.4755,3030.7,3028.5,0.4891]
[1763433429156,0.1092,3031.3,3028.5,0.4891]
[1763433429157,0.51674595,3030.6,3028.5,0.4891]
[1763433429314,0.1092,3031.3,3028.5,0.4891]
[1763433429513,0.1092,3031.3,3028.6,0.405504]
[1763433429719,0.44674179,3031.2,3028.6,0.405504]
[1763433429914,0.44674179,3031.2,3028.7,0.4891]
[1763433429915,0.4755,3031.2,3028.7,0.4891]
[1763433430216,0.51047057,3032.6,3028.8,0.405504]
[1763433430217,0.4755,3032.5,3028.8,0.405504]
[1763433430449,0.5255,3032.4,3028.8,0.70205749]
[1763433430776,0.5255,3032.4,3029.0,0.405504]
[1763433431286,0.5255,3032.4,3028.8,0.29655349]
[1763433431287,0.5255,3032.4,3029.2,0.405504]
[1763433431640,0.04122283,3032.3,3029.4,0.405504]
[1763433431844,0.5255,3032.4,3029.4,0.405504]
[1763433432044,0.4755,3032.3,3029.6,0.405504]
[1763433432266,0.4755,3032.9,3029.6,0.405504]
[1763433432437,0.659,3033.1,3029.8,0.405504]
[1763433432646,0.1835,3034.9,3030.0,0.50550399]
[1763433432647,0.1835,3033.4,3030.0,0.50550399]
[1763433432970,0.1835,3033.4,3031.0,1.31249664]
[1763433433154,0.4755,3033.3,3031.2,0.405504]
[1763433433349,0.4755,3033.3,3031.1,0.71909189]
[1763433433350,0.0412106,3033.2,3031.3,0.4891]
[1763433433652,0.4755,3033.3,3031.4,0.405504]
[1763433434201,0.1835,3033.4,3031.6,0.405504]
[1763433434538,0.1835,3033.4,3031.8,0.405504]
[1763433434739,0.1835,3033.4,3032.0,0.405504]
[1763433435173,0.4755,3033.3,3031.7,0.1912]
[1763433435374,0.0412106,3033.2,3031.7,0.1912]
[1763433435594,0.4755,3033.3,3031.7,0.1912]
[1763433435887,0.4755,3033.3,3031.7,0.6803]
[1763433436254,0.4755,3033.3,3031.8,0.4891]
[1763433437395,0.1835,3033.4,3031.9,0.405504]
[1763433437695,0.659,3033.4,3032.0,0.4891]
[1763433438706,0.4594,3033.3,3032.0,0.4891]
[1763433438901,0.4594,3033.3,3031.1,0.1912]
[1763433438902,0.405504,3033.1,3031.3,0.4923]
[1763433439055,0.1876,3032.1,3031.1,0.1912]
[1763433439263,0.4594,3033.0,3031.2,0.4923]
[1763433439575,0.1856,3031.2,3029.7,0.1834]
[1763433439777,0.4594,3031.1,3029.7,0.1834]
[1763433439958,0.04124051,3031.0,3029.7,0.1834]
[1763433440164,0.4594,3031.1,3029.8,0.4923]
[1763433440386,0.1856,3031.2,3029.8,0.4923]
[1763433441003,0.645,3031.2,3029.7,0.1834]
[1763433441298,0.864904,3031.1,3029.7,0.1834]
[1763433441607,0.864904,3031.1,3029.4,0.6757]
[1763433441853,0.405504,3030.9,3029.5,0.1834]
[1763433442128,0.4594,3031.0,3029.5,0.1834]
[1763433442292,0.4594,3031.0,3029.5,0.6757]
[1763433442895,0.4594,3031.0,3029.1,0.1834]
[1763433442896,0.04124187,3030.9,3029.1,0.1834]
[1763433443095,0.1856,3031.2,3029.1,0.1834]
[1763433443096,0.4594,3030.8,3029.1,0.1834]
[1763433443320,0.4594,3030.8,3028.8,0.1834]
[1763433443321,0.405504,3030.7,3028.8,0.1834]
[1763433443528,0.405504,3030.5,3028.8,0.1834]
[1763433443701,0.405504,3030.5,3027.6,0.86451723]
[1763433443702,0.4594,3030.6,3028.3,0.1834]
[1763433444022,0.405504,3030.3,3028.3,0.1834]
[1763433444201,0.405504,3030.1,3028.0,0.1834]
[1763433444710,0.1962,3030.5,3028.1,0.4923]
[1763433444711,0.405504,3029.9,3028.1,0.4923]
[1763433445088,0.405504,3029.7,3028.0,0.1834]
[1763433445289,0.4594,3029.6,3028.0,0.1834]
[1763433445739,0.4594,3029.6,3027.9,0.4923]
[1763433445930,0.4594,3029.6,3027.7,0.1834]
[1763433446245,0.4594,3029.6,3029.0,0.001]
[1763433446800,0.4594,3030.2,3029.0,0.001]
[1763433448508,0.4594,3030.2,3029.1,0.405504]
[1763433448711,0.1962,3030.8,3029.1,0.405504]
[1763433448910,0.1962,3030.8,3029.3,0.405504]
[1763433449142,0.4594,3031.4,3029.9,0.405504]
[1763433449341,0.645,3031.2,3029.9,0.405504]
[1763433449560,0.645,3031.2,3029.7,0.405504]
[1763433449708,0.645,3031.2,3029.6,0.1834]
[1763433449709,0.4594,3031.1,3029.6,0.1834]
[1763433449908,0.4594,3031.1,3029.2,0.405504]
[1763433450647,0.4594,3031.1,3029.0,0.406504]
[1763433450853,0.4594,3031.1,3029.4,0.405504]
[1763433451012,0.4594,3031.1,3029.5,0.1834]
[1763433451512,0.04124051,3031.0,3029.2,1.17000906]
[1763433451739,0.04124051,3031.0,3029.1,1.17000906]